bitfinex-derivatives/quotes_ETHF0:USTF0_20250807
["timestamp","ask_amount","ask_price","bid_price","bid_amount"]
[1754601987916,42.3738,3870.2,3870.1,2.0188]
[1754601988216,43.30603411,3870.2,3870.1,2.0188]
[1754601990514,0.7991,3869.8,3869.7,1.6274]
[1754601990816,4.7816,3869.8,3869.7,2.0188]
[1754601991119,22.6547,3869.8,3869.7,2.0188]
[1754601991318,22.89784238,3869.8,3869.7,2.0188]
[1754601991517,5.22084238,3869.8,3869.7,2.0188]
[1754601992621,5.91097492,3869.8,3869.7,2.0188]
[1754601992822,5.91097492,3869.8,3869.2,1.46326]
[1754601992823,0.5564,3869.3,3869.2,1.46326]
[1754601993125,1.7699,3869.3,3868.9,0.8306]
[1754601993326,0.7991,3869.0,3868.9,1.6274]
[1754601993521,42.3738,3869.0,3868.9,2.0188]
[1754601995926,42.64495606,3869.0,3868.9,2.0188]
[1754601996528,42.64494797,3869.0,3868.9,2.0188]
[1754601997524,42.64494797,3869.0,3868.5,0.00907]
[1754601997731,0.7991,3868.8,3868.7,1.31363]
[1754601997931,1.5738,3868.8,3868.7,1.31363]
[1754601998328,1.5738,3868.8,3868.7,2.53563]
[1754601998625,1.5738,3868.8,3868.7,2.0188]
[1754601998828,2.28672,3868.8,3868.7,0.9465]
[1754601999024,2.28675,3868.6,3868.5,0.00907]
[1754601999328,23.17255,3868.6,3868.5,0.00907]
[1754601999528,23.44369797,3868.6,3868.5,0.40047]
[1754601999729,23.44369797,3868.6,3868.5,0.00907]
[1754602000728,64.24369797,3868.6,3868.5,0.00907]
[1754602002527,64.25533681,3868.6,3868.5,0.00907]
[1754602004238,46.38123681,3868.6,3868.5,0.91047]
[1754602004437,63.54238681,3868.6,3868.5,1.98037]
[1754602005339,63.2596,3868.6,3868.5,1.98037]
[1754602005631,63.54213442,3868.6,3868.5,1.98037]
[1754602006836,63.54200284,3868.6,3868.5,1.98037]
[1754602007136,63.54200284,3868.6,3868.5,0.00907]
[1754602007334,63.72440284,3868.6,3868.5,0.00907]
[1754602007540,0.7631,3868.3,3868.2,0.3607]
[1754602007738,19.92667,3868.3,3868.2,0.3607]
[1754602007939,20.20907284,3868.3,3868.2,0.3607]
[1754602008437,2.06531,3868.0,3867.9,2.65192558]
[1754602008741,19.74531,3868.0,3867.9,2.90202558]
[1754602009039,19.2284,3868.0,3867.9,2.90202558]
[1754602009738,58.48,3868.0,3867.9,2.90202558]
[1754602009941,59.2653,3868.0,3867.9,2.08222558]
[1754602010139,59.2653,3868.0,3867.9,2.90202558]
[1754602017348,59.54777622,3868.0,3867.9,2.90202558]
[1754602019847,59.73017622,3868.0,3867.9,2.90202558]
[1754602020343,59.54777622,3868.0,3867.9,2.90202558]
[1754602022153,59.2653,3868.0,3867.9,2.90202558]
[1754602022352,59.54827188,3868.0,3867.9,2.90202558]
[1754602022652,59.2653,3868.0,3867.9,2.90202558]
[1754602022951,59.54843405,3868.0,3867.9,2.90202558]
[1754602024146,59.54743405,3868.0,3867.9,2.90202558]
[1754602024942,41.08313405,3868.0,3867.9,2.90202558]
[1754602025147,58.76213405,3868.0,3867.9,2.90202558]
[1754602026352,58.76251726,3868.0,3867.9,2.90202558]
[1754602026554,58.76151726,3868.0,3867.9,2.90202558]
[1754602026956,59.27843726,3868.0,3867.9,2.90202558]
[1754602027548,60.75252556,3868.0,3867.9,2.90202558]
[1754602029454,60.23560556,3868.0,3867.9,2.90202558]
[1754602029654,60.23609905,3868.0,3867.9,2.90202558]
[1754602031256,41.48928179,3868.0,3867.9,2.90202558]
[1754602031456,0.97005726,3868.0,3867.9,2.90202558]
[1754602031653,0.28077547,3868.0,3867.9,2.90202558]
[1754602031853,0.2808856,3868.0,3867.9,2.90202558]
[1754602033153,3.2078,3868.5,3868.4,0.51686]
[1754602033356,0.3967,3868.9,3868.8,1.9719]
[1754602033357,4.88889,3868.9,3868.8,1.9719]
[1754602033557,24.00918955,3868.9,3868.8,1.9719]
[1754602033755,64.80918955,3868.9,3868.8,1.9719]
[1754602035753,64.29239955,3868.9,3868.8,1.9719]
[1754602036857,64.29039955,3868.9,3868.8,1.9719]
[1754602037058,46.61639955,3868.9,3868.8,2.48871]
[1754602037253,63.90769955,3868.9,3868.8,1.9719]
[1754602037558,40.8,3868.9,3868.8,2.18262083]
[1754602037756,3.2078,3869.3,3869.2,1.9719]
[1754602037959,4.60024331,3869.3,3869.2,1.9719]
[1754602038268,45.3305,3869.3,3869.2,1.9719]
[1754602038458,44.9586,3869.3,3869.2,1.9719]
[1754602040464,44.5411,3869.3,3869.2,1.9719]
[1754602040663,44.0078,3869.3,3869.2,1.9719]
[1754602040963,44.0078,3869.3,3868.8,1.50033833]
[1754602040964,1.3227,3869.6,3869.5,1.9719]
[1754602041266,42.1227,3869.6,3869.5,2.48861]
[1754602041468,60.1754,3869.6,3869.5,1.9719]
[1754602043563,42.5054,3869.6,3869.5,2.48861]
[1754602043766,60.1754,3869.6,3869.5,1.9719]
[1754602043965,42.5054,3869.6,3869.5,1.9719]
[1754602044465,60.1734,3869.6,3869.5,1.9719]
[1754602045265,42.5054,3869.6,3869.5,1.9719]
[1754602045462,41.3333,3869.6,3869.5,1.9719]
[1754602045668,58.468,3869.6,3869.5,1.9719]
[1754602045863,40.8,3869.6,3869.5,1.9719]
[1754602046173,58.8855,3869.6,3869.5,1.9719]
[1754602046362,41.5894,3869.6,3869.5,1.9719]
[1754602046668,59.6401,3869.6,3869.5,1.9719]
[1754602048366,41.5894,3869.6,3869.5,1.9719]
[1754602048565,59.2554,3869.6,3869.5,1.9719]
[1754602048967,59.6381,3869.6,3869.5,1.9719]
[1754602049670,41.5894,3869.6,3869.5,1.9719]
[1754602049865,59.6371,3869.6,3869.5,1.9719]
[1754602051768,41.9721,3869.6,3869.5,1.9719]
[1754602051976,59.6371,3869.6,3869.5,1.9719]
[1754602052468,3.2078,3869.9,3869.8,1.30657]
[1754602052673,1.1851,3870.2,3870.1,2.48853]
[1754602052874,19.22,3870.2,3870.1,2.48853]
[1754602053070,60.4027,3870.2,3870.1,1.9719]
[1754602058669,42.7397,3870.2,3870.1,1.9719]
[1754602058864,41.5676,3870.2,3870.1,1.9719]
[1754602059280,1.1851,3870.1,3870.0,0.51664]
[1754602059473,1.9397,3870.1,3870.0,1.37874]
[1754602059778,19.5997,3870.1,3870.0,1.75404]
[1754602059966,19.5997,3870.1,3870.0,2.18894]
[1754602060371,19.5997,3870.1,3870.0,2.48854]
[1754602061680,1.9397,3870.1,3870.0,2.82450442]
[1754602062082,1.557,3870.1,3870.0,0.85260442]
[1754602062283,1.9397,3870.1,3870.0,0.85260442]
[1754602063081,1.9397,3870.1,3870.0,1.22310442]
[1754602063282,1.9397,3870.1,3870.0,1.82430442]
[1754602063482,1.9397,3870.1,3870.0,2.77150442]
[1754602063880,1.9397,3870.1,3870.0,2.43554]
[1754602064179,1.9397,3870.1,3870.0,2.77173703]
[1754602067084,1.9397,3870.1,3870.0,2.77201477]
[1754602067578,1.9397,3870.1,3870.0,2.77215485]
[1754602068182,1.9397,3870.1,3870.0,2.77220398]
[1754602069679,1.9397,3870.1,3870.0,2.43554]
[1754602070386,1.9397,3870.1,3870.0,2.14294]
[1754602071587,1.9397,3870.1,3870.0,2.43554]
[1754602071979,19.5937,3870.1,3870.0,2.43554]
[1754602072380,1.9397,3870.1,3870.0,2.43554]
[1754602072586,19.5937,3870.1,3870.0,2.43554]
[1754602074387,19.5937,3870.1,3870.0,0.51664]
[1754602074581,19.5927,3870.1,3870.0,0.51664]
[1754602074881,19.5927,3870.1,3870.0,1.48834]
[1754602075086,19.5927,3870.1,3870.0,2.14294]
[1754602075683,19.5927,3870.1,3870.0,1.6263]
[1754602077392,19.5927,3870.1,3870.0,1.9189]
[1754602078591,20.30334814,3870.1,3870.0,1.9189]
[1754602080090,20.54104874,3870.1,3870.0,1.9189]
[1754602083795,20.30334814,3870.1,3870.0,1.9189]
[1754602083999,20.54127047,3870.1,3870.0,1.9189]
[1754602084903,20.30334814,3870.1,3870.0,1.9189]
[1754602085199,20.54127561,3870.1,3870.0,1.9189]
[1754602086603,20.30334814,3870.1,3870.0,1.9189]
[1754602087202,20.54128003,3870.1,3870.0,1.9189]
[1754602087894,20.30334814,3870.1,3870.0,1.9189]
[1754602090601,20.54128289,3870.1,3870.0,1.9189]
[1754602091090,20.30334814,3870.1,3870.0,1.9189]
[1754602091894,20.57500925,3870.1,3870.0,1.9189]
[1754602094301,2.92200925,3870.1,3870.0,1.9189]
[1754602094508,0.98230252,3870.1,3870.0,1.9189]
[1754602094697,0.27165438,3870.1,3870.0,5.1267]
[1754602095201,17.645,3870.6,3870.5,0.51658]
[1754602095399,0.70698711,3870.6,3870.5,4.49518]
[1754602095796,40.8,3870.6,3870.5,4.49518]
[1754602095998,41.50698711,3870.6,3870.5,5.65378]
[1754602096192,41.50698711,3870.6,3870.5,2.44598]
[1754602097101,40.8,3870.6,3870.5,2.44598]
[1754602097606,40.8,3870.6,3870.5,2.65409743]
[1754602097909,40.8,3870.6,3870.5,2.44598]
[1754602098802,40.8,3870.6,3870.5,2.64813944]
[1754602099596,40.8,3870.6,3870.5,2.44598]
[1754602104114,41.2372,3870.6,3870.5,2.44598]
[1754602104311,42.12757,3870.6,3870.5,1.9294]
[1754602104819,41.611,3870.6,3870.5,1.9294]
[1754602109014,40.8,3870.6,3870.5,1.9294]
[1754602113114,1.0988,3870.8,3870.7,1.9299]
[1754602113307,0.2878,3870.8,3870.7,1.9299]
[1754602113513,2.11164,3870.9,3870.8,1.9299]
[1754602114016,42.3951,3870.9,3870.8,1.9299]
[1754602114211,42.7476,3870.9,3870.8,1.9299]
[1754602114719,42.98843362,3870.9,3870.8,1.9299]
[1754602115314,42.7476,3870.9,3870.8,1.9299]
[1754602115518,42.98847921,3870.9,3870.8,1.9299]
[1754602115912,42.7476,3870.9,3870.8,1.9299]
[1754602116120,42.98847966,3870.9,3870.8,1.9299]
[1754602116320,43.69587895,3870.9,3870.8,1.9299]
[1754602118120,1.9476,3870.3,3870.1,3.2078]
[1754602118415,1.9476,3870.2,3870.1,3.9502]
[1754602118724,1.9476,3870.2,3870.1,1.6346]
[1754602119920,1.9476,3870.2,3870.1,1.9299]
[1754602122220,0.5166,3870.4,3870.2,1.1591]
[1754602122424,1.7379,3870.4,3870.3,1.2179]
[1754602122724,2.4642,3870.4,3870.3,1.9299]
[1754602124620,1.5951,3870.4,3870.3,1.9299]
[1754602125121,1.931,3870.4,3870.3,1.9299]
[1754602126423,1.931,3870.4,3870.3,2.44651]
[1754602126625,1.931,3870.4,3870.3,1.9299]
[1754602132125,1.5951,3870.4,3870.3,1.9299]
[1754602132323,1.5392,3870.7,3870.6,0.81506]
[1754602132522,1.5392,3870.7,3870.6,1.27136]
[1754602132726,1.8751,3870.7,3870.6,1.27136]
[1754602133034,1.8751,3870.7,3870.6,1.8936]
[1754602134525,0.7145,3870.7,3870.6,1.8936]
[1754602134733,1.8751,3870.7,3870.6,1.8936]
[1754602134936,0.7145,3870.7,3870.6,1.8936]
[1754602135232,0.93856275,3870.8,3870.1,4.49938]
[1754602135233,0.93856275,3870.8,3870.7,1.27135]
[1754602135532,1.35746275,3870.8,3870.7,2.41015]
[1754602135827,1.65306275,3870.8,3870.7,2.41015]
[1754602136026,2.00218163,3870.8,3870.7,2.41015]
[1754602136925,1.00358163,3870.8,3870.7,2.41015]
[1754602137132,1.42248163,3870.8,3870.7,2.41015]
[1754602137433,2.00218163,3870.8,3870.7,2.41015]
[1754602137625,2.24718163,3870.8,3870.7,2.41015]
[1754602138130,1.89598163,3870.8,3870.7,2.41015]
[1754602138831,2.24718163,3870.8,3870.7,2.41015]
[1754602139431,1.47708163,3870.8,3870.7,2.41015]
[1754602139628,1.00358163,3870.8,3870.7,2.41015]
[1754602140527,1.42248163,3870.8,3870.7,2.41015]
[1754602141227,2.24718163,3870.8,3870.7,2.41015]
[1754602141628,1.5392,3870.8,3870.7,2.41015]
[1754602142323,40.8,3870.9,3870.7,2.41015]
[1754602142527,40.8,3870.9,3870.8,1.3625]
[1754602142734,1.2942,3871.2,3871.1,2.4101]
[1754602142928,4.14650511,3871.4,3871.3,0.51647]
[1754602143128,45.8829,3871.4,3871.3,1.1795]
[1754602143333,46.82160511,3871.4,3871.3,1.1795]
[1754602143833,43.61380511,3871.4,3871.3,1.1795]
[1754602144434,43.61380511,3871.4,3871.3,1.69597]
[1754602144633,43.61380511,3871.4,3871.3,1.1795]
[1754602145335,43.61380511,3871.4,3871.3,1.5951]
[1754602145638,43.61380511,3871.4,3871.3,1.8936]
[1754602146226,43.38328644,3871.4,3871.3,1.8936]
[1754602147136,1.42268644,3871.4,3871.3,1.8936]
[1754602147337,0.7145,3871.4,3871.3,1.8936]
[1754602147537,0.943,3871.4,3871.3,1.8936]
[1754602147839,0.7145,3871.4,3871.3,1.8936]
[1754602148044,1.0657,3871.4,3871.3,1.8936]
[1754602148231,1.2942,3871.4,3871.3,1.8936]
[1754602148434,1.188,3871.8,3871.7,1.32592]
[1754602148633,1.8751,3871.8,3871.7,1.32592]
[1754602149243,1.188,3871.8,3871.7,2.41002]
[1754602149631,1.5392,3871.8,3871.7,2.41002]
[1754602149837,0.2956,3871.8,3871.7,2.41002]
[1754602150437,0.7145,3871.8,3871.7,2.41002]
[1754602150739,1.2942,3871.8,3871.7,2.41002]
[1754602150935,1.5392,3871.8,3871.7,2.41002]
[1754602151342,1.8751,3871.8,3871.7,2.41002]
[1754602152343,1.5392,3871.8,3871.7,2.41002]
[1754602153634,1.8713,3871.8,3871.7,2.41002]
[1754602154340,1.5392,3871.8,3871.7,2.41002]
[1754602155239,0.943,3871.8,3871.7,2.41002]
[1754602155439,0.7145,3871.8,3871.7,2.41002]
[1754602156040,1.0431,3871.8,3871.7,2.41002]
[1754602157255,1.2856,3871.8,3871.7,2.41002]
[1754602158052,0.957,3871.8,3871.7,2.41002]
[1754602158747,1.5104,3871.8,3871.7,2.41002]
[1754602160848,17.617,3872.5,3871.9,0.51639]
[1754602161054,1.8371,3872.4,3872.3,0.5768]
[1754602161254,0.7474,3872.2,3872.1,1.72766]
[1754602161453,42.6371,3872.2,3872.1,2.00486]
[1754602161652,42.6371,3872.2,3872.1,2.34936]
[1754602162251,42.6371,3872.2,3872.1,2.55775876]
[1754602162451,41.229,3872.2,3872.1,2.55775876]
[1754602162652,41.5576,3872.2,3872.1,2.55775876]
[1754602162951,41.5576,3872.2,3872.1,2.34936]
[1754602162952,1.0377,3872.2,3872.1,2.34936]
[1754602163348,0.7091,3872.2,3872.1,2.34936]
[1754602163556,0.7091,3872.2,3872.1,2.55372019]
[1754602164453,0.7091,3872.2,3872.1,2.34936]
[1754602164757,1.505,3872.2,3872.1,2.34936]
[1754602165646,1.8371,3872.2,3872.1,2.34936]
[1754602167652,1.1764,3872.2,3872.1,2.34936]
[1754602167852,1.505,3872.2,3872.1,2.34936]
[1754602168348,44.0078,3872.6,3872.5,0.51631]
[1754602168555,45.80539348,3872.6,3872.5,0.51631]
[1754602170158,45.0975,3872.6,3872.5,0.86081]
[1754602171360,0.7474,3872.4,3871.9,0.3445]
[1754602171754,0.7474,3872.0,3871.9,0.86089]
[1754602171950,1.5085,3872.0,3871.9,1.43769]
[1754602172150,1.8371,3872.0,3871.9,1.43769]
[1754602172656,1.8371,3872.0,3871.9,2.34939]
[1754602173857,1.8371,3872.0,3871.9,2.07219]
[1754602174055,1.8371,3871.4,3871.3,3.4413]
[1754602174562,1.8371,3871.4,3871.3,4.64557]
[1754602175260,1.505,3871.4,3871.3,5.55727]
[1754602175450,1.1764,3871.4,3871.3,5.55727]
[1754602177056,1.8371,3871.4,3871.3,5.55727]
[1754602177256,1.8371,3871.4,3871.3,5.28007]
[1754602177861,1.8371,3871.4,3871.3,4.52087]
[1754602178161,1.8371,3871.4,3871.3,5.28037]
[1754602178355,1.8371,3871.4,3871.3,4.86417]
[1754602179260,1.8371,3871.4,3871.3,0.51647]
[1754602179461,1.8371,3871.4,3871.3,1.20427]
[1754602179761,1.8371,3871.4,3871.3,1.65637]
[1754602180060,1.8371,3871.4,3871.3,2.07257]
[1754602180761,1.8371,3871.4,3871.3,0.51647]
[1754602180962,1.8371,3871.4,3871.3,1.09327]
[1754602181163,1.8371,3871.4,3871.3,2.07257]
[1754602181966,1.8371,3871.4,3871.3,2.34977]
[1754602183461,0.4511,3871.8,3871.7,1.26832]
[1754602183667,0.9741,3871.8,3871.7,1.94632]
[1754602183859,1.544,3871.8,3871.7,1.94632]
[1754602184060,1.544,3871.8,3871.7,2.36242]
[1754602184365,1.8735,3871.8,3871.7,2.36242]
[1754602185261,1.8735,3871.8,3871.7,1.30602]
[1754602185769,1.8735,3871.8,3871.7,1.66162]
[1754602186065,1.8735,3871.8,3871.7,2.07772]
[1754602187063,0.7596,3871.8,3871.4,0.3224]
[1754602187263,1.8735,3871.3,3871.2,19.97149]
[1754602189869,0.9741,3871.3,3871.2,19.97149]
[1754602190061,1.8735,3871.3,3871.2,19.97149]
[1754602190866,1.8735,3871.3,3871.2,19.27069]
[1754602191067,1.8735,3871.3,3871.2,19.68679]
[1754602191462,1.8735,3871.3,3871.2,19.97149]
[1754602191860,1.544,3871.3,3871.2,19.97149]
[1754602192269,0.7453,3871.3,3871.2,19.97149]
[1754602192966,1.0786,3871.5,3871.4,1.26836]
[1754602193268,1.8735,3871.5,3871.4,2.36246]
[1754602194462,1.8735,3871.5,3871.4,2.07776]
[1754602194761,1.8735,3871.5,3871.4,2.36246]
[1754602194959,1.544,3871.5,3871.4,2.36246]
[1754602195369,1.8735,3871.5,3871.4,2.36246]
[1754602196667,1.544,3871.5,3871.4,2.36246]
[1754602197064,41.1295,3871.7,3871.4,2.36246]
[1754602197065,40.8,3871.7,3871.6,0.51643]
[1754602197274,41.5844,3871.7,3871.6,2.36243]
[1754602197474,40.8,3871.7,3871.6,2.36243]
[1754602197773,41.2511,3871.7,3871.6,2.36243]
[1754602198274,41.5844,3871.7,3871.6,2.36243]
[1754602198471,0.7453,3871.7,3871.6,2.36243]
[1754602199574,41.2511,3871.8,3871.7,1.846]
[1754602199771,0.2942,3872.0,3871.9,0.7519]
[1754602200076,0.7453,3872.0,3871.9,1.846]
[1754602200262,40.8,3872.4,3872.3,1.94624]
[1754602200462,42.52367448,3872.4,3872.3,2.36234]
[1754602200674,41.81417638,3872.4,3872.3,2.36234]
[1754602201271,0.22977638,3872.4,3872.3,2.36234]
[1754602201471,1.4224,3872.8,3872.7,2.36229]
[1754602201671,42.2224,3872.8,3872.7,1.846]
[1754602201872,42.26238993,3872.8,3872.7,1.846]
[1754602202169,43.37628993,3872.8,3872.7,1.846]
[1754602202375,42.89660351,3872.8,3872.7,1.846]
[1754602203076,0.7596,3872.7,3872.6,18.12229]
[1754602203273,0.98945147,3872.7,3872.6,18.12229]
[1754602203574,2.10335147,3872.7,3872.6,19.03389]
[1754602203875,2.10335147,3872.7,3872.6,1.66149]
[1754602204070,0.7844,3872.6,3872.1,3.2078]
[1754602204273,1.8735,3872.2,3872.1,20.8118]
[1754602204575,1.8735,3872.5,3872.4,2.07762]
[1754602204873,1.8735,3872.5,3872.4,2.36232]
[1754602205069,41.48095204,3872.8,3872.4,1.846]
[1754602205271,41.48095204,3872.8,3872.7,2.36229]
[1754602206268,41.02985204,3872.8,3872.7,2.36229]
[1754602206476,0.22985204,3872.8,3872.7,2.36229]
[1754602206869,0.4511,3873.8,3872.7,2.36229]
[1754602206870,0.523,3873.8,3873.7,0.51615]
[1754602207070,1.8735,3873.8,3873.7,19.96515]
[1754602207367,1.8735,3873.8,3873.7,2.36215]
[1754602207570,1.8735,3873.8,3873.7,1.33895]
[1754602207766,1.1139,3873.7,3873.0,3.2078]
[1754602207966,1.8735,3873.1,3872.6,3.2078]
[1754602208170,0.523,3872.4,3872.3,18.35294]
[1754602208378,0.7596,3872.4,3872.3,2.36234]
[1754602208776,1.8735,3872.4,3872.3,2.36234]
[1754602209277,1.8735,3872.4,3872.3,19.96334]
[1754602210071,1.3036,3872.8,3872.7,0.98349]
[1754602210377,1.8735,3872.8,3872.7,2.36229]
[1754602211274,1.5402,3872.8,3872.7,2.36229]
[1754602211576,1.2107,3872.8,3872.7,2.36229]
[1754602212974,1.5402,3872.8,3872.7,2.36229]
[1754602213175,40.8,3873.0,3872.9,2.32866]
[1754602213475,0.5254,3873.2,3873.1,1.24033]
[1754602213779,1.5285,3873.5,3873.4,1.24029]
[1754602213979,1.8801,3873.5,3873.4,2.32859]
[1754602214877,0.70835851,3873.9,3873.8,0.51614]
[1754602214878,1.67005851,3873.9,3873.8,0.51614]
[1754602215082,1.8801,3873.9,3873.8,0.51614]
[1754602215575,1.8801,3873.9,3873.8,2.32854]
[1754602216372,1.0922,3873.9,3873.8,2.32854]
[1754602216574,1.5285,3873.9,3873.8,2.32854]
[1754602216971,1.8801,3873.9,3873.8,2.32854]
[1754602217281,1.8801,3873.9,3873.8,1.28434]
[1754602217484,1.8801,3873.9,3873.8,1.63594]
[1754602217779,1.8801,3873.9,3873.8,2.32854]
[1754602218083,42.6801,3873.9,3873.8,2.32854]
[1754602218283,42.6801,3873.9,3873.8,1.91284]
[1754602218483,42.6801,3873.9,3873.8,1.63594]
[1754602219185,42.6801,3873.9,3873.8,1.28434]
[1754602219587,42.6801,3873.9,3873.8,2.32854]
[1754602220084,42.3285,3873.9,3873.8,2.32854]
[1754602220386,42.6801,3873.9,3873.8,2.32854]
[1754602221178,40.8,3873.9,3873.8,2.32854]
[1754602222088,41.9239,3873.9,3873.8,2.32854]
[1754602228606,41.9239,3873.9,3873.8,19.92154]
[1754602229399,41.9239,3873.9,3873.8,18.10914]
[1754602229604,40.8,3873.9,3873.8,19.92154]
[1754602230204,1.0,3874.0,3873.8,18.83324]
[1754602230403,1.0,3874.0,3873.9,0.6926]
[1754602230708,1.0,3874.0,3873.9,1.8124]
[1754602231301,2.8801,3874.0,3873.9,1.8124]
[1754602235508,2.8801,3874.0,3873.9,1.5355]
[1754602235910,2.8801,3874.0,3873.9,1.1198]
[1754602236609,2.8801,3874.0,3873.9,1.8124]
[1754602237405,1.5254,3874.0,3873.9,1.8124]
[1754602237599,0.79710101,3874.6,3874.5,0.7241]
[1754602237805,0.79710101,3874.6,3874.5,19.91945]
[1754602238108,41.59710101,3874.6,3874.5,19.91945]
[1754602238308,42.03340101,3874.6,3874.5,19.91945]
[1754602238806,1.46810101,3874.6,3874.5,19.91945]
[1754602239310,41.5879,3875.1,3875.0,1.63578]
[1754602239607,42.68096124,3875.1,3875.0,1.31478]
[1754602240310,42.68096124,3875.1,3875.0,1.08558]
[1754602240511,42.68096124,3875.1,3875.0,1.40658]
[1754602241210,42.45232546,3875.1,3875.0,1.40658]
[1754602241412,0.5254,3874.9,3874.3,4.91367]
[1754602241615,1.5441,3874.4,3874.3,5.18467]
[1754602241811,1.5441,3874.4,3874.3,22.77467]
[1754602242002,1.5441,3874.4,3874.3,23.12627]
[1754602242003,0.9578,3874.4,3874.3,23.12627]
[1754602242209,0.727,3874.4,3874.3,23.12627]
[1754602243718,0.86476099,3875.0,3874.9,0.84059]
[1754602243719,2.42606099,3875.0,3874.9,0.84059]
[1754602244106,2.42606099,3875.0,3874.9,0.3246]
[1754602244313,0.4699,3874.8,3874.7,0.3246]
[1754602244515,1.7201,3874.8,3874.7,0.3246]
[1754602245106,1.1069,3874.4,3874.3,17.588]
[1754602245414,1.7201,3874.4,3874.3,17.588]
[1754602245613,1.7201,3874.4,3874.3,17.9126]
[1754602248219,1.7201,3874.4,3874.3,0.3246]
[1754602249812,1.7201,3874.4,3874.3,0.8857]
[1754602250011,2.23616,3874.4,3874.3,0.8857]
[1754602250208,1.7201,3874.4,3874.3,0.8857]
[1754602250820,1.7201,3874.4,3874.3,0.5566]
[1754602251117,1.7172,3874.4,3874.3,0.3246]
[1754602251419,1.7172,3874.4,3874.3,0.8857]
[1754602252222,1.5579,3874.4,3874.3,1.1079]
[1754602252425,1.5579,3874.4,3874.3,1.5232]
[1754602252722,1.5579,3874.4,3874.3,1.8198]
[1754602253018,0.7363,3874.4,3874.3,1.8198]
[1754602253214,1.5579,3874.4,3874.3,1.8198]
[1754602253916,1.5579,3874.4,3874.3,1.1079]
[1754602254122,1.7172,3874.4,3874.3,1.1079]
[1754602254318,1.7172,3874.4,3874.3,0.5566]
[1754602255022,1.7172,3874.4,3874.3,0.8857]
[1754602255415,1.7172,3874.4,3874.3,1.1079]
[1754602255622,1.5579,3874.4,3874.3,1.1079]
[1754602256025,1.5579,3874.4,3874.3,1.5232]
[1754602256519,1.5579,3874.4,3874.3,1.1079]
[1754602257422,1.5579,3874.4,3874.3,1.5232]
[1754602257724,1.5579,3874.4,3874.3,1.8198]
[1754602259317,1.5579,3874.4,3874.3,1.1079]
[1754602259518,1.7172,3874.4,3874.3,1.1079]
[1754602259921,2.07402,3874.0,3873.9,0.3246]
[1754602260222,1.7172,3873.9,3873.8,3.2078]
[1754602260419,1.7172,3873.9,3873.8,0.3246]
[1754602260614,42.5172,3873.9,3873.4,3.5369]
[1754602260817,0.7363,3873.5,3873.4,1.8198]
[1754602261020,1.088,3873.5,3873.4,1.8198]
[1754602261220,1.3226,3873.5,3873.4,1.8198]
[1754602261423,1.5579,3873.5,3873.4,1.8198]
[1754602261718,42.3579,3873.5,3873.4,1.8198]
[1754602263824,40.8,3873.5,3873.4,1.8198]
[1754602264324,41.251,3873.5,3873.4,1.8198]
[1754602264824,41.6027,3873.5,3873.4,1.8198]
[1754602265824,41.6027,3873.5,3873.4,1.4045]
[1754602266123,41.6027,3873.5,3873.4,1.8198]
[1754602269321,40.8,3873.5,3873.4,1.8198]
[1754602269526,40.8,3873.5,3873.4,5.0276]
[1754602271531,1.5579,3874.5,3874.4,1.8198]
[1754602271825,1.5579,3874.5,3874.4,2.33586]
[1754602272018,42.3579,3874.5,3874.4,2.33586]
[1754602272624,40.8,3874.5,3874.4,2.33586]
[1754602273529,40.8,3874.5,3874.4,5.54366]
[1754602274030,3.9462,3875.5,3875.4,1.0883]
[1754602274227,3.9462,3875.5,3875.4,1.5036]
[1754602274436,44.7462,3875.5,3875.4,1.0883]
[1754602274629,46.46045982,3875.5,3875.4,1.60423]
[1754602274829,46.46045982,3875.5,3875.4,2.01953]
[1754602275035,46.23031052,3875.5,3875.4,1.5036]
[1754602275434,46.46037123,3875.5,3875.4,1.5036]
[1754602276539,46.23031052,3875.5,3875.4,1.0883]
[1754602277131,46.38031052,3875.5,3875.4,0.5482]
[1754602277739,1.5132,3875.1,3875.0,0.5464]
[1754602277935,0.51598,3875.0,3874.8,3.2078]
[1754602278136,1.6632,3874.9,3874.8,0.3301]
[1754602278329,0.2854,3874.4,3874.1,0.3301]
[1754602278528,1.0818,3874.2,3874.1,1.6914]
[1754602278728,1.5132,3874.2,3874.1,1.9845]
[1754602278931,42.3132,3874.2,3874.1,1.9845]
[1754602279339,42.3132,3874.2,3874.1,2.3128]
[1754602282743,42.82929,3874.2,3874.1,1.7967]
[1754602282936,42.3132,3874.2,3874.1,1.3814]
[1754602283138,42.3132,3874.2,3874.1,1.0883]
[1754602283738,42.3132,3874.2,3874.1,1.5035]
[1754602284139,0.2854,3873.9,3873.8,3.5379]
[1754602284353,1.5132,3873.9,3873.8,4.7113]
[1754602284549,1.5132,3873.9,3873.8,5.0044]
[1754602285345,1.5132,3873.9,3873.8,1.7966]
[1754602287843,1.5132,3873.9,3873.8,0.5482]
[1754602288048,1.6639,3873.9,3873.8,0.3301]
[1754602288343,2.02938,3873.5,3873.4,3.4259]
[1754602288649,2.18008,3873.5,3873.4,0.2181]
[1754602288948,2.18008,3873.5,3873.4,0.3301]
[1754602289341,1.6639,3873.5,3873.4,0.3301]
[1754602289743,1.5132,3873.5,3873.4,0.76]
[1754602289950,1.5132,3873.5,3873.4,1.0883]
[1754602290250,1.5132,3873.5,3873.4,1.5035]
[1754602290251,42.3132,3873.5,3873.4,1.5035]
[1754602291752,42.3132,3873.5,3873.4,1.7966]
[1754602297458,42.4639,3873.5,3873.4,0.8765]